fUST/lending_fUST_20250930
["ID","MTS","AMOUNT","RATE_DAILY","PERIOD"]
[388490921,1759210239533,-482.61768232,0.0001965,2]
[388490922,1759210239542,-480.0,0.0001965,2]
[388490923,1759210239552,-1522.0,0.0001965,2]
[388490924,1759210239561,-480.0,0.0001965,2]
[388490925,1759210239570,-480.0,0.0001965,2]
[388490926,1759210239579,-480.0,0.0001965,2]
[388490927,1759210239588,-480.0,0.0001965,2]
[388490928,1759210239598,-481.75417128,0.0001965,2]
[388490929,1759210239607,-480.0,0.0001965,2]
[388490930,1759210239616,-481.91825361,0.0001965,2]
[388490931,1759210239625,-480.0,0.0001965,2]
[388490932,1759210239634,-480.0,0.0001965,2]
[388490933,1759210239644,-480.0,0.0001965,2]
[388490934,1759210239653,-481.83436585,0.0001965,2]
[388490935,1759210239663,-151.0,0.0001965,2]
[388490936,1759210239673,-505.4,0.0001965,2]
[388490937,1759210239682,-151.0,0.0001965,2]
[388490938,1759210239693,-500.0,0.0001965,2]
[388490939,1759210239702,-482.91204233,0.0001965,2]
[388490940,1759210239711,-151.0,0.0001965,2]
[388490941,1759210239721,-500.0,0.0001965,2]
[388490942,1759210239731,-482.09104609,0.0001965,2]
[388490943,1759210239741,-480.0,0.0001965,2]
[388490944,1759210239751,-480.0,0.0001965,2]
[388490945,1759210239764,-389.53305627,0.0001965,2]
[388490946,1759210239774,-482.33486847,0.0001965,2]
[388490947,1759210239783,-151.0,0.0001965,2]
[388490948,1759210239793,-480.0,0.0001965,2]
[388490949,1759210239802,-480.0,0.0001965,2]
[388490950,1759210239811,-480.0,0.0001965,2]
[388490951,1759210239820,-480.0,0.0001965,2]
[388490952,1759210239830,-151.0,0.0001965,2]
[388490953,1759210239839,-500.0,0.0001965,2]
[388490954,1759210239849,-151.0,0.0001965,2]
[388490955,1759210239858,-151.0,0.0001965,2]
[388490956,1759210239867,-480.0,0.0001965,2]
[388490957,1759210239877,-482.01409744,0.0001965,2]
[388490958,1759210239886,-480.0,0.0001965,2]
[388490959,1759210239895,-151.27116586,0.0001965,2]
[388490960,1759210239904,-500.0,0.0001965,2]
[388490961,1759210239914,-482.15604963,0.0001965,2]
[388490962,1759210239923,-480.0,0.0001965,2]
[388490963,1759210239933,-892.56,0.0001965,2]
[388490965,1759210239943,-480.0,0.0001965,2]
[388490966,1759210239952,-151.0,0.0001965,2]
[388490968,1759210239962,-151.0,0.0001965,2]
[388490970,1759210239971,-423.15178647,0.0001965,2]
[388490972,1759210239981,-1695.241841,0.0001965,2]
[388490974,1759210239991,-1695.241841,0.0001965,2]
[388490975,1759210240000,-480.0,0.0001965,2]
[388490976,1759210240008,-1695.241841,0.0001965,2]
[388490977,1759210240018,-151.0,0.0001965,2]
[388490978,1759210240027,-1695.241841,0.0001965,2]
[388490979,1759210240036,-151.0,0.0001965,2]
[388490980,1759210240045,-151.0,0.0001965,2]
[388490981,1759210240055,-151.0,0.0001965,2]
[388490982,1759210240064,-480.0,0.0001965,2]
[388490983,1759210240073,-481.23061899,0.0001965,2]
[388490984,1759210240082,-511.95988347,0.0001965,2]
[388490985,1759210240092,-151.0,0.0001965,2]
[388490986,1759210240102,-152.823349,0.0001965,2]
[388490987,1759210240111,-151.0,0.0001965,2]
[388490988,1759210240121,-151.0,0.0001965,2]
[388490989,1759210240130,-184.994339,0.0001965,2]
[388490990,1759210240139,-161.292503,0.0001965,2]
[388490991,1759210240149,-184.994339,0.0001965,2]
[388490992,1759210240158,-480.0,0.0001965,2]
[388490993,1759210240167,-184.994339,0.0001965,2]
[388490994,1759210240176,-477.0,0.0001965,2]
[388490995,1759210240186,-184.994339,0.0001965,2]
[388490996,1759210240196,-480.0,0.00019651,2]
[388490997,1759210240205,-480.0,0.00019651,2]
[388490998,1759210240214,-480.0,0.00019651,2]
[388490999,1759210240223,-480.0,0.00019651,2]
[388491000,1759210240233,-500.0,0.00019651,2]
[388491001,1759210240242,-151.0,0.00019651,2]
[388491002,1759210240253,-166.59214565,0.00019651,2]
[388491003,1759210240262,-151.0,0.00019651,2]
[388491004,1759210240272,-480.0,0.00019651,2]
[388491005,1759210240282,-480.0,0.00019651,2]
[388491006,1759210240293,-480.0,0.00019651,2]
[388491007,1759210240303,-500.0,0.00019651,2]
[388491008,1759210240312,-500.0,0.00019651,2]
[388491009,1759210240321,-480.0,0.00019651,2]
[388491010,1759210240331,-480.0,0.00019651,2]
[388491011,1759210240341,-480.0,0.00019651,2]
[388491012,1759210240350,-480.0,0.00019651,2]
[388491013,1759210240360,-481.72978433,0.00019651,2]
[388491014,1759210240370,-151.0,0.00019651,2]
[388491015,1759210240379,-151.0,0.00019651,2]
[388491016,1759210240388,-151.0,0.00019651,2]
[388491017,1759210240398,-151.0,0.00019651,2]
[388491018,1759210240408,-151.0,0.00019651,2]
[388491019,1759210240417,-151.0,0.00019651,2]
[388491020,1759210240428,-151.870272,0.00019651,2]
[388491021,1759210240438,-151.412175,0.00019651,2]
[388491022,1759210240448,-151.0,0.00019651,2]
[388491023,1759210240459,-151.0,0.00019651,2]
[388491024,1759210240470,-157.351722,0.00019651,2]
[388491025,1759210240481,-157.351722,0.00019651,2]
[388491026,1759210240491,-157.351722,0.00019651,2]
[388491027,1759210240502,-157.351722,0.00019651,2]
[388491028,1759210240512,-156.858882,0.00019651,2]
[388491029,1759210240522,-151.0,0.00019651,2]
[388491030,1759210240531,-151.0,0.00019651,2]
[388491031,1759210240542,-170.496425,0.00019651,2]
[388491032,1759210240552,-151.0,0.00019651,2]
[388491033,1759210240561,-151.0,0.00019651,2]
[388491034,1759210240571,-194.096264,0.00019651,2]
[388491035,1759210240580,-151.0,0.00019651,2]
[388491036,1759210240590,-151.0,0.00019651,2]
[388491037,1759210240599,-151.0,0.00019651,2]
[388491038,1759210240608,-242.596328,0.00019651,2]
[388491039,1759210240618,-151.0,0.00019651,2]
[388491040,1759210240628,-151.0,0.00019651,2]
[388491041,1759210240636,-151.0,0.00019651,2]
[388491042,1759210240646,-763.993657,0.00019651,2]
[388491043,1759210240655,-151.0,0.00019651,2]
[388491044,1759210240664,-763.993657,0.00019651,2]
[388491045,1759210240673,-763.993657,0.00019651,2]
[388491046,1759210240682,-763.993657,0.00019651,2]
[388491047,1759210240691,-198.909964,0.00019651,2]
[388491048,1759210240700,-198.909964,0.00019651,2]
[388491049,1759210240710,-198.909964,0.00019651,2]
[388491050,1759210240719,-198.909964,0.00019651,2]
[388491051,1759210240728,-500.0,0.00019652,2]
[388491052,1759210240738,-500.0,0.00019652,2]
[388491053,1759210240748,-500.0,0.00019652,2]
[388491054,1759210240758,-167.74762407,0.00019652,2]
[388491055,1759210240768,-1000.0,0.00019652,2]
[388491056,1759210240779,-1000.0,0.00019652,2]
[388491057,1759210240788,-1000.0,0.00019652,2]
[388491058,1759210240799,-1000.0,0.00019652,2]
[388491059,1759210240808,-1000.0,0.00019652,2]
[388491060,1759210240818,-151.0,0.00019652,2]
[388491061,1759210240827,-153.422214,0.00019652,2]
[388491062,1759210240837,-1695.241841,0.00019652,2]
[388491063,1759210240847,-1695.241841,0.00019652,2]
[388491064,1759210240859,-1695.241841,0.00019652,2]
[388491065,1759210240869,-151.0,0.00019652,2]
[388491066,1759210240879,-1695.241841,0.00019652,2]
[388491067,1759210240888,-151.0,0.00019652,2]
[388491068,1759210240898,-151.0,0.00019652,2]
[388491069,1759210240907,-151.0,0.00019652,2]
[388491070,1759210240917,-151.0,0.00019652,2]
[388491071,1759210240926,-151.0,0.00019652,2]
[388491072,1759210240935,-151.0,0.00019652,2]
[388491073,1759210240945,-184.994339,0.00019652,2]
[388491074,1759210240955,-184.994339,0.00019652,2]
[388491075,1759210240964,-184.994339,0.00019652,2]
[388491076,1759210240973,-184.994339,0.00019652,2]
[388491077,1759210240982,-314.24699438,0.00019652,2]
[388491078,1759210240992,-1000.0,0.00019652,2]
[388491079,1759210241001,-1000.0,0.00019652,2]
[388491080,1759210241010,-543.91093237,0.00019652,2]
[388491081,1759210241020,-1000.0,0.00019652,2]
[388491082,1759210241030,-945.64741454,0.00019652,2]
[388491083,1759210241042,-250.0,0.00019652,2]
[388491084,1759210241053,-251.45953203,0.00019652,2]
[388491085,1759210241064,-151.0,0.00019652,2]
[388491086,1759210241075,-151.0,0.00019652,2]
[388491087,1759210241087,-151.0,0.00019652,2]
[388491088,1759210241097,-151.0,0.00019652,2]
[388491089,1759210241107,-151.0,0.00019652,2]
[388491090,1759210241117,-151.0,0.00019652,2]
[388491091,1759210241128,-151.0,0.00019652,2]
[388491092,1759210241137,-151.0,0.00019652,2]
[388491093,1759210241146,-151.0,0.00019652,2]
[388491094,1759210241156,-151.0,0.00019652,2]
[388491095,1759210241166,-151.0,0.00019652,2]
[388491096,1759210241175,-151.0,0.00019652,2]
[388491097,1759210241185,-151.0,0.00019652,2]
[388491098,1759210241195,-151.0,0.00019652,2]
[388491099,1759210241204,-151.0,0.00019652,2]
[388491100,1759210241213,-151.0,0.00019652,2]
[388491101,1759210241223,-525.83974446,0.00019652,2]
[388491102,1759210241233,-151.0,0.00019652,2]
[388491103,1759210241242,-151.0,0.00019652,2]
[388491104,1759210241252,-151.0,0.00019652,2]
[388491105,1759210241262,-151.0,0.00019652,2]
[388491106,1759210241271,-151.0,0.00019652,2]
[388491107,1759210241281,-496.85,0.00019653,2]
[388491108,1759210241290,-500.0,0.00019653,2]
[388491109,1759210241299,-151.0,0.00019653,2]
[388491110,1759210241309,-169.0,0.00019654,2]
[388491111,1759210241318,-1000.0,0.00019654,2]
[388491112,1759210241328,-152.230061,0.00019654,2]
[388491113,1759210241337,-151.0,0.00019654,2]
[388491114,1759210241347,-1000.0,0.00019655,2]
[388491115,1759210241356,-157.351722,0.00019655,2]
[388491116,1759210241366,-157.351722,0.00019655,2]
[388491117,1759210241375,-157.351722,0.00019655,2]
[388491118,1759210241385,-157.351722,0.00019655,2]
[388491119,1759210241395,-380.98910082,0.00019662,2]
[388491120,1759210241407,-1000.0,0.00019662,2]
[388491121,1759210241416,-1000.0,0.00019662,2]
[388491122,1759210241426,-1000.0,0.00019663,2]
[388491123,1759210241435,-151.0,0.00019663,2]
[388491124,1759210241445,-151.0,0.00019663,2]
[388491125,1759210241455,-151.0,0.00019663,2]
[388491126,1759210241465,-151.0,0.00019663,2]
[388491127,1759210241484,-151.0,0.00019663,2]
[388491128,1759210241498,-480.0,0.00019664,2]
[388491129,1759210241508,-480.0,0.00019664,2]
[388491130,1759210241517,-480.0,0.00019664,2]
[388491131,1759210241526,-152.272717,0.00019664,2]
[388491132,1759210241536,-152.940764,0.00019664,2]
[388491133,1759210241546,-151.0,0.00019664,2]
[388491134,1759210241556,-153.196372,0.00019664,2]
[388491135,1759210241566,-151.0,0.00019664,2]
[388491136,1759210241575,-151.0,0.00019664,2]
[388491137,1759210241585,-151.0,0.00019664,2]
[388491138,1759210241595,-153.60906,0.00019664,2]
[388491139,1759210241605,-151.0,0.00019664,2]
[388491140,1759210241614,-152.354403,0.00019664,2]
[388491141,1759210241624,-157.351722,0.00019664,2]
[388491142,1759210241634,-157.351722,0.00019664,2]
[388491143,1759210241643,-157.351722,0.00019664,2]
[388491144,1759210241653,-157.351722,0.00019664,2]
[388491145,1759210241663,-152.337796,0.00019664,2]
[388491146,1759210241673,-200.072454,0.00019664,2]
[388491147,1759210241682,-151.0,0.00019664,2]
[388491148,1759210241694,-151.0,0.00019664,2]
[388491149,1759210241703,-151.0,0.00019664,2]
[388491150,1759210241713,-151.0,0.00019664,2]
[388491151,1759210241722,-763.993657,0.00019664,2]
[388491152,1759210241731,-151.0,0.00019664,2]
[388491153,1759210241741,-763.993657,0.00019664,2]
[388491154,1759210241751,-763.993657,0.00019664,2]
[388491155,1759210241760,-763.993657,0.00019664,2]
[388491156,1759210241769,-198.909964,0.00019664,2]
[388491157,1759210241779,-198.909964,0.00019664,2]
[388491158,1759210241788,-198.909964,0.00019664,2]
[388491159,1759210241798,-198.909964,0.00019664,2]
[388491160,1759210241807,-1000.0,0.00019665,2]
[388491161,1759210241817,-1000.0,0.00019665,2]
[388491162,1759210241827,-1033.99964133,0.00019665,2]
[388491163,1759210241836,-152.660272,0.00019666,2]
[388491164,1759210241845,-168.0,0.0001967,2]
[388491165,1759210241854,-284.0,0.00019721,2]
[388491166,1759210241863,-457.25123881,0.00019756,2]
[388491167,1759210241872,-1877.51249792,0.00019763,2]
[388491168,1759210241881,-271.0,0.00019778,2]
[388491169,1759210241891,-168.0,0.00019794,2]
[388491170,1759210241901,-189.2390982,0.000198,2]
[388491171,1759210241911,-162.424336,0.000198,2]
[388491172,1759210241920,-1173.5962862,0.000198,2]
[388491173,1759210241929,-306.0,0.000198,2]
[388491174,1759210241939,-598.0,0.00019814,2]
[388491175,1759210241948,-600.28,0.00019822,2]
[388491176,1759210241958,-480.0,0.00019822,2]
[388491177,1759210241967,-480.0,0.00019822,2]
[388491178,1759210241976,-480.0,0.00019822,2]
[388491179,1759210241986,-480.0,0.00019822,2]
[388491180,1759210241995,-236.87,0.00019822,2]
[388491181,1759210242006,-480.0,0.00019822,2]
[388491182,1759210242015,-480.0,0.00019822,2]
[388491183,1759210242025,-480.0,0.00019822,2]
[388491184,1759210242034,-866.04,0.00019822,2]
[388491185,1759210242043,-411.42478509,0.00019822,2]
[388491186,1759210242052,-480.0,0.00019823,2]
[388491187,1759210242061,-480.0,0.00019823,2]
[388491188,1759210242071,-480.0,0.00019823,2]
[388491189,1759210242080,-482.33571748,0.00019823,2]
[388491190,1759210242090,-480.0,0.00019823,2]
[388491191,1759210242100,-480.0,0.00019823,2]
[388491192,1759210242109,-480.0,0.00019823,2]
[388491193,1759210242118,-480.0,0.00019823,2]
[388491194,1759210242129,-497.25194668,0.00019823,2]
[388491195,1759210242138,-480.0,0.00019823,2]
[388491196,1759210242148,-480.0,0.00019823,2]
[388491197,1759210242157,-520.54339504,0.00019823,2]
[388491198,1759210242166,-493.68690218,0.00019823,2]
[388491199,1759210242175,-480.0,0.00019823,2]
[388491200,1759210242184,-480.0,0.00019823,2]
[388491201,1759210242194,-151.0,0.00019823,2]
[388491202,1759210242203,-480.0,0.00019823,2]
[388491203,1759210242212,-216.134415,0.00019823,2]
[388491204,1759210242221,-480.0,0.00019823,2]
[388491205,1759210242231,-480.0,0.00019823,2]
[388491206,1759210242240,-480.0,0.00019823,2]
[388491207,1759210242249,-152.732757,0.00019823,2]
[388491208,1759210242259,-151.0,0.00019823,2]
[388491209,1759210242268,-480.0,0.00019823,2]
[388491210,1759210242277,-670.35,0.00019823,2]
[388491211,1759210242287,-573.07,0.00019823,2]
[388491212,1759210242296,-480.0,0.00019823,2]
[388491213,1759210242305,-480.0,0.00019823,2]
[388491214,1759210242316,-480.0,0.00019823,2]
[388491215,1759210242325,-3780.9,0.00019823,2]
[388491216,1759210242334,-480.0,0.00019823,2]
[388491217,1759210242344,-5318.57,0.00019823,2]
[388491218,1759210242357,-480.0,0.00019823,2]
[388491219,1759210242366,-496.44,0.00019823,2]
[388491220,1759210242376,-571.77,0.00019823,2]
[388491221,1759210242386,-151.0,0.00019823,2]
[388491222,1759210242395,-480.0,0.00019823,2]
[388491223,1759210242405,-509.95,0.00019823,2]
[388491224,1759210242415,-1695.241841,0.00019823,2]
[388491225,1759210242424,-1695.241841,0.00019823,2]
[388491226,1759210242434,-742.26,0.00019823,2]
[388491229,1759210242444,-1695.241841,0.00019823,2]
[388491231,1759210242454,-151.0,0.00019823,2]
[388491232,1759210242466,-1695.241841,0.00019823,2]
[388491233,1759210242486,-151.0,0.00019823,2]
[388491234,1759210242502,-151.0,0.00019823,2]
[388491235,1759210242512,-151.0,0.00019823,2]
[388491237,1759210242522,-480.0,0.00019823,2]
[388491238,1759210242533,-480.0,0.00019823,2]
[388491240,1759210242544,-172.579401,0.00019823,2]
[388491242,1759210242554,-151.0,0.00019823,2]
[388491244,1759210242564,-480.0,0.00019823,2]
[388491246,1759210242574,-151.0,0.00019823,2]
[388491247,1759210242584,-184.994339,0.00019823,2]
[388491249,1759210242594,-184.994339,0.00019823,2]
[388491251,1759210242603,-184.994339,0.00019823,2]
[388491252,1759210242613,-184.994339,0.00019823,2]
[388491254,1759210242624,-480.0,0.00019824,2]
[388491256,1759210242633,-480.0,0.00019824,2]
[388491258,1759210242643,-480.0,0.00019824,2]
[388491259,1759210242652,-480.0,0.00019824,2]
[388491261,1759210242662,-500.86,0.00019824,2]
[388491262,1759210242672,-480.0,0.00019824,2]
[388491263,1759210242682,-485.36,0.00019824,2]
[388491264,1759210242692,-480.0,0.00019824,2]
[388491265,1759210242701,-1231.35,0.00019824,2]
[388491266,1759210242711,-1441.99,0.00019824,2]
[388491267,1759210242721,-480.0,0.00019824,2]
[388491268,1759210242732,-161.02482084,0.00019824,2]
[388491269,1759210242742,-396.91,0.00019824,2]
[388491270,1759210242753,-151.0,0.00019824,2]
[388491271,1759210242764,-151.0,0.00019824,2]
[388491272,1759210242774,-151.0,0.00019824,2]
[388491273,1759210242784,-480.0,0.00019824,2]
[388491274,1759210242795,-738.13,0.00019824,2]
[388491275,1759210242806,-480.0,0.00019824,2]
[388491276,1759210242817,-480.0,0.00019824,2]
[388491277,1759210242827,-480.0,0.00019824,2]
[388491278,1759210242838,-1134.07,0.00019824,2]
[388491279,1759210242850,-480.0,0.00019824,2]
[388491280,1759210242863,-482.36232409,0.00019824,2]
[388491281,1759210242875,-480.0,0.00019824,2]
[388491282,1759210242885,-743.53,0.00019824,2]
[388491283,1759210242894,-480.0,0.00019824,2]
[388491284,1759210242907,-480.0,0.00019824,2]
[388491285,1759210242917,-594.61,0.00019824,2]
[388491286,1759210242927,-480.0,0.00019824,2]
[388491287,1759210242937,-480.0,0.00019824,2]
[388491288,1759210243112,-480.0,0.00019824,2]
[388491289,1759210243122,-155.650222,0.00019824,2]
[388491290,1759210243131,-561.69,0.00019824,2]
[388491291,1759210243141,-689.61,0.00019824,2]
[388491292,1759210243150,-875.84,0.00019824,2]
[388491293,1759210243159,-356.88287632,0.00019824,2]
[388491294,1759210243169,-400.0,0.00019824,2]
[388491295,1759210243179,-533.09,0.00019824,2]
[388491296,1759210243188,-746.92,0.00019824,2]
[388491297,1759210243197,-480.0,0.00019824,2]
[388491298,1759210243208,-480.0,0.00019824,2]
[388491299,1759210243217,-1793.86,0.00019824,2]
[388491300,1759210243226,-1251.13,0.00019824,2]
[388491301,1759210243235,-988.82,0.00019824,2]
[388491302,1759210243244,-743.82,0.00019824,2]
[388491303,1759210243254,-480.0,0.00019824,2]
[388491304,1759210243264,-480.0,0.00019824,2]
[388491305,1759210243273,-290.99295455,0.00019824,2]
[388491306,1759210243282,-480.0,0.00019824,2]
[388491307,1759210243291,-508.38,0.00019824,2]
[388491308,1759210243300,-258.376249,0.00019824,2]
[388491309,1759210243310,-480.0,0.00019824,2]
[388491310,1759210243320,-480.0,0.00019824,2]
[388491311,1759210243329,-480.0,0.00019824,2]
[388491312,1759210243338,-151.0,0.00019824,2]
[388491313,1759210243347,-151.0,0.00019824,2]
[388491314,1759210243357,-157.148126,0.00019824,2]
[388491315,1759210243366,-763.993657,0.00019824,2]
[388491316,1759210243376,-151.0,0.00019824,2]
[388491317,1759210243385,-763.993657,0.00019824,2]
[388491318,1759210243394,-763.993657,0.00019824,2]
[388491319,1759210243404,-763.993657,0.00019824,2]
[388491320,1759210243414,-480.0,0.00019824,2]
[388491321,1759210243423,-526.72,0.00019824,2]
[388491322,1759210243432,-151.0,0.00019824,2]
[388491323,1759210243442,-198.909964,0.00019824,2]
[388491324,1759210243451,-198.909964,0.00019824,2]
[388491325,1759210243460,-198.909964,0.00019824,2]
[388491326,1759210243471,-198.909964,0.00019824,2]
[388491327,1759210243481,-536.39,0.00019824,2]
[388491328,1759210243490,-480.0,0.00019824,2]
[388491329,1759210243500,-480.0,0.00019824,2]
[388491330,1759210243509,-480.0,0.00019824,2]
[388491331,1759210243517,-480.0,0.00019824,2]
[388491332,1759210243526,-480.0,0.00019824,2]
[388491333,1759210243536,-382.92,0.00019824,2]
[388491334,1759210243545,-480.0,0.00019824,2]
[388491335,1759210243554,-271.0,0.00019844,2]
[388491336,1759210243564,-5173.6109009,0.0001987,2]
[388491337,1759210243573,-151.0,0.00019879,2]
[388491338,1759210243582,-151.0,0.00019879,2]
[388491339,1759210243592,-195.697187,0.00019879,2]
[388491340,1759210243601,-151.0,0.00019879,2]
[388491341,1759210243610,-763.993657,0.00019879,2]
[388491342,1759210243620,-151.0,0.00019879,2]
[388491343,1759210243630,-763.993657,0.00019879,2]
[388491344,1759210243640,-763.993657,0.00019879,2]
[388491345,1759210243650,-763.993657,0.00019879,2]
[388491346,1759210243659,-266.692105,0.00019879,2]
[388491347,1759210243669,-198.909964,0.00019879,2]
[388491348,1759210243678,-198.909964,0.00019879,2]
[388491349,1759210243687,-198.909964,0.00019879,2]
[388491350,1759210243696,-198.909964,0.00019879,2]
[388491351,1759210243705,-151.0,0.00019879,2]
[388491352,1759210243715,-1695.241841,0.00019879,2]
[388491353,1759210243725,-1695.241841,0.00019879,2]
[388491354,1759210243734,-1695.241841,0.00019879,2]
[388491355,1759210243744,-151.0,0.00019879,2]
[388491356,1759210243753,-1695.241841,0.00019879,2]
[388491357,1759210243763,-151.0,0.00019879,2]
[388491358,1759210243772,-151.0,0.00019879,2]
[388491359,1759210243781,-282.221361,0.00019879,2]
[388491360,1759210243790,-151.0,0.00019879,2]
[388491361,1759210243800,-151.0,0.00019879,2]
[388491362,1759210243809,-184.994339,0.00019879,2]
[388491363,1759210243819,-184.994339,0.00019879,2]
[388491364,1759210243828,-184.994339,0.00019879,2]
[388491365,1759210243837,-184.994339,0.00019879,2]
[388491366,1759210243847,-74276.71902389,0.00019879,2]
[388491367,1759210243856,-189.2390982,0.000199,2]
[388491368,1759210243865,-297.0711174,0.000199,2]
[388491369,1759210243875,-162.424336,0.000199,2]
[388491370,1759210243883,-162.3399399,0.000199,2]
[388491371,1759210243893,-469.2196413,0.000199,2]
[388491372,1759210243902,-151.0,0.00019915,3]
[388491373,1759210243911,-151.0,0.00019915,3]
[388491374,1759210243920,-500.0,0.00019915,3]
[388491375,1759210243929,-500.0,0.00019915,3]
[388491376,1759210243938,-284.0,0.00019917,2]
[388491377,1759210243948,-545.32678729,0.00019924,2]
[388491378,1759210243957,-500.0,0.00019924,2]
[388491379,1759210243966,-151.0,0.00019924,2]
[388491380,1759210243975,-500.0,0.00019924,2]
[388491381,1759210243985,-1522.0,0.00019924,2]
[388491382,1759210243994,-233.01828311,0.00019924,2]
[388491383,1759210244003,-151.0,0.00019924,2]
[388491384,1759210244012,-500.0,0.00019924,2]
[388491385,1759210244022,-154.81138613,0.00019924,2]
[388491386,1759210244032,-533.3284636,0.00019924,2]
[388491387,1759210244041,-257.93351217,0.00019924,2]
[388491388,1759210244050,-500.0,0.00019924,2]
[388491389,1759210244058,-151.0,0.00019924,2]
[388491390,1759210244068,-500.0,0.00019924,2]
[388491391,1759210244077,-480.0,0.00019924,2]
[388491392,1759210244087,-490.19,0.00019924,2]
[388491393,1759210244095,-480.0,0.00019924,2]
[388491394,1759210244105,-480.0,0.00019924,2]
[388491395,1759210244114,-480.0,0.00019924,2]
[388491396,1759210244123,-480.0,0.00019924,2]
[388491397,1759210244132,-480.0,0.00019924,2]
[388491398,1759210244141,-480.0,0.00019924,2]
[388491399,1759210244150,-480.0,0.00019924,2]
[388491400,1759210244159,-480.0,0.00019924,2]
[388491401,1759210244168,-480.0,0.00019924,2]
[388491402,1759210244177,-480.0,0.00019924,2]
[388491403,1759210244187,-480.0,0.00019924,2]
[388491404,1759210244195,-480.0,0.00019924,2]
[388491405,1759210244204,-784.63,0.00019924,2]
[388491406,1759210244213,-480.0,0.00019924,2]
[388491407,1759210244223,-476.74182139,0.00019924,2]
[388491408,1759210244232,-480.0,0.00019924,2]
[388491409,1759210244241,-594.81,0.00019924,2]
[388491410,1759210244250,-480.0,0.00019924,2]
[388491411,1759210244259,-480.0,0.00019924,2]
[388491412,1759210244268,-480.0,0.00019924,2]
[388491413,1759210244277,-480.0,0.00019924,2]
[388491414,1759210244286,-504.3095606,0.00019924,2]
[388491415,1759210244296,-480.0,0.00019924,2]
[388491416,1759210244305,-480.0,0.00019924,2]
[388491417,1759210244314,-761.34,0.00019924,2]
[388491418,1759210244323,-488.58980645,0.00019924,2]
[388491419,1759210244332,-480.0,0.00019924,2]
[388491420,1759210244341,-483.31916378,0.00019924,2]
[388491421,1759210244350,-480.0,0.00019924,2]
[388491422,1759210244359,-480.0,0.00019924,2]
[388491423,1759210244369,-958.9,0.00019924,2]
[388491424,1759210244377,-480.0,0.00019924,2]
[388491425,1759210244387,-480.0,0.00019924,2]
[388491426,1759210244396,-480.0,0.00019924,2]
[388491427,1759210244405,-480.0,0.00019924,2]
[388491428,1759210244414,-480.0,0.00019924,2]
[388491429,1759210244423,-687.19,0.00019924,2]
[388491430,1759210244433,-480.0,0.00019924,2]
[388491431,1759210244443,-480.0,0.00019924,2]
[388491432,1759210244452,-480.0,0.00019924,2]
[388491433,1759210244461,-480.0,0.00019924,2]
[388491434,1759210244472,-480.0,0.00019924,2]
[388491435,1759210244482,-1201.5,0.00019924,2]
[388491436,1759210244492,-480.0,0.00019924,2]
[388491437,1759210244501,-480.0,0.00019924,2]
[388491438,1759210244511,-480.0,0.00019924,2]
[388491439,1759210244520,-524.35,0.00019924,2]